fUSD/lending_fUSD_20251210
["ID","MTS","AMOUNT","RATE_DAILY","PERIOD"]
[398133069,1765395038870,-150.0,0.000284,14]
[398133070,1765395038881,-150.85,0.00028455,2]
[398133071,1765395038891,-10216.77722798,0.00028466,2]
[398133072,1765395038903,-6453.0,0.00028524,2]
[398133073,1765395038914,-89.4371528,0.00029036,2]
[398133075,1765395038924,-500.0,0.00029308,7]
[398133076,1765395038935,-7053.37492992,0.000296,30]
[398133077,1765395038945,-166.59050349,0.00029723,2]
[398133078,1765395038955,-153.03,0.00030851,2]
[398133079,1765395038965,-1333.86,0.000309,30]
[398133080,1765395038976,-10216.77722798,0.00031079,2]
[398133081,1765395038986,-9035.0,0.00031276,3]
[398133082,1765395038997,-1000.0,0.00031381,2]
[398133083,1765395039008,-160.0,0.00032,14]
[398133084,1765395039018,-850.0,0.00032164,7]
[398133086,1765395039028,-153.03,0.00032666,2]
[398133088,1765395039039,-197.44197135,0.0003287,30]
[398133090,1765395039050,-150.72,0.00032881,2]
[398133092,1765395039060,-591.54575894,0.000329,30]
[398133094,1765395039071,-241.37,0.000329,14]
[398133096,1765395039081,-10216.77722798,0.00033693,2]
[398133098,1765395039092,-478.32096809,0.00033807,2]
[398133100,1765395039104,-150.0,0.000339,30]
[398133102,1765395039115,-311.1,0.00033928,2]
[398133104,1765395039126,-3666.0,0.00034293,3]
[398133106,1765395039138,-322.6107,0.00034476,2]
[398133108,1765395039150,-153.03,0.0003448,2]
[398133110,1765395039161,-1000.0,0.00034519,2]
[398133112,1765395039172,-735.07,0.000349,2]
[398133114,1765395039184,-1195.58,0.000349,90]
[398133116,1765395039195,-150.99,0.000349,30]
[398133118,1765395039205,-1333.86,0.000349,30]
[398133119,1765395039215,-226.03101544,0.00035,10]
[398133121,1765395039226,-150.99,0.00035,2]
[398133124,1765395039237,-1597.45,0.00035,2]
[398133125,1765395039248,-9735.50267491,0.00035,30]
[398133128,1765395039259,-514.49732509,0.00035,30]
[398133129,1765395039269,-401.31731943,0.00035,4]
[398133131,1765395039279,-233.21484585,0.00035024,2]
[398133132,1765395039289,-166.59050349,0.00035629,2]
[398133133,1765395039304,-300.0,0.00036048,2]
[398133134,1765395039317,-900.0,0.00036048,2]
[398133135,1765395039333,-500.0,0.00036069,2]
[398133136,1765395039348,-5331.42,0.0003607,2]
[398133137,1765395039363,-871.57,0.0003607,2]
[398133138,1765395039375,-843.17,0.0003607,2]
[398133139,1765395039387,-153.03,0.00036295,2]
[398133140,1765395039401,-10216.77722798,0.00036307,2]
[398133141,1765395039414,-900.0,0.00036596,2]
[398133142,1765395039428,-500.0,0.00036767,2]
[398133143,1765395039440,-150.85,0.00036878,2]
[398133144,1765395039453,-151.0,0.00036885,14]
[398133145,1765395039468,-70104.14711065,0.00036888,60]
[398133146,1765395039482,-900.0,0.00037144,2]
[398133147,1765395039495,-344.8107,0.00037417,2]
[398133148,1765395039507,-1000.0,0.00037658,2]
[398133149,1765395039520,-900.0,0.00037692,2]
[398133150,1765395039532,-153.03,0.0003811,2]
[398133151,1765395039543,-900.0,0.0003824,2]
[398133152,1765395039553,-1852.42,0.00038389,2]
[398133153,1765395039567,-4673.822,0.00038427,2]
[398133154,1765395039580,-253.0,0.00038427,2]
[398133155,1765395039594,-1793.258,0.00038427,2]
[398133156,1765395039606,-199.17,0.0003863,2]
[398133157,1765395039619,-500.0,0.000387,120]
[398133158,1765395039631,-500.0,0.000387,120]
[398133159,1765395039644,-500.0,0.000387,120]
[398133160,1765395039656,-500.0,0.000387,120]
[398133161,1765395039668,-241.37,0.000387,14]
[398133162,1765395039680,-1333.86,0.000387,30]
[398133163,1765395039692,-900.0,0.00038788,2]
[398133164,1765395039705,-10216.77722798,0.00038921,2]
[398133165,1765395039715,-244.02,0.00038985,2]
[398133166,1765395039726,-151.80375574,0.00039042,2]
[398133167,1765395039740,-1000.0,0.00039042,2]
[398133168,1765395039752,-151.0,0.00039042,2]
[398133169,1765395039763,-500.0,0.00039042,2]
[398133171,1765395039775,-1000.0,0.00039042,2]
[398133172,1765395039787,-500.0,0.00039042,2]
[398133173,1765395039798,-1000.0,0.00039042,2]
[398133174,1765395039809,-500.0,0.00039042,2]
[398133175,1765395039820,-1000.0,0.00039042,2]
[398133176,1765395039832,-393.57188812,0.00039042,2]
[398133177,1765395039844,-1000.0,0.00039042,2]
[398133178,1765395039855,-500.0,0.00039042,2]
[398133179,1765395039868,-500.0,0.00039042,2]
[398133180,1765395039882,-500.0,0.00039042,2]
[398133181,1765395039895,-500.0,0.00039042,2]
[398133182,1765395039908,-500.0,0.00039042,2]
[398133183,1765395039919,-500.0,0.00039042,2]
[398133184,1765395039932,-250.0,0.00039042,2]
[398133185,1765395039944,-500.0,0.00039042,2]
[398133186,1765395039957,-500.0,0.00039042,2]
[398133187,1765395039966,-500.0,0.00039042,2]
[398133188,1765395039976,-250.0,0.00039042,2]
[398133189,1765395039987,-500.0,0.00039042,2]
[398133190,1765395039998,-250.0,0.00039042,2]
[398133191,1765395040009,-544.08822076,0.00039042,2]
[398133192,1765395040020,-250.0,0.00039042,2]
[398133193,1765395040034,-500.0,0.00039042,2]
[398133195,1765395040048,-250.0,0.00039042,2]
[398133196,1765395040058,-250.0,0.00039042,2]
[398133197,1765395040069,-500.0,0.00039042,2]
[398133198,1765395040079,-250.0,0.00039042,2]
[398133199,1765395040089,-250.0,0.00039042,2]
[398133200,1765395040099,-500.0,0.00039042,2]
[398133201,1765395040111,-250.0,0.00039042,2]
[398133202,1765395040123,-250.0,0.00039042,2]
[398133203,1765395040135,-500.0,0.00039042,2]
[398133204,1765395040148,-250.0,0.00039042,2]
[398133205,1765395040161,-500.0,0.00039042,2]
[398133206,1765395040174,-250.0,0.00039042,2]
[398133207,1765395040187,-500.0,0.00039042,2]
[398133208,1765395040199,-250.0,0.00039042,2]
[398133209,1765395040211,-250.0,0.00039042,2]
[398133210,1765395040222,-250.0,0.00039042,2]
[398133211,1765395040234,-250.0,0.00039042,2]
[398133212,1765395040245,-180.8155,0.00039042,2]
[398133213,1765395040257,-1000.0,0.00039042,2]
[398133214,1765395040268,-1000.0,0.00039042,2]
[398133215,1765395040279,-151.0,0.00039042,2]
[398133216,1765395040290,-1000.0,0.00039042,2]
[398133217,1765395040300,-151.0,0.00039042,2]
[398133218,1765395040311,-1000.0,0.00039042,2]
[398133219,1765395040322,-151.0,0.00039042,2]
[398133220,1765395040334,-1000.0,0.00039042,2]
[398133221,1765395040347,-151.0,0.00039042,2]
[398133222,1765395040359,-1000.0,0.00039042,2]
[398133223,1765395040371,-151.0,0.00039042,2]
[398133224,1765395040382,-1000.0,0.00039042,2]
[398133225,1765395040392,-151.0,0.00039042,2]
[398133226,1765395040403,-151.0,0.00039042,2]
[398133227,1765395040415,-1000.0,0.00039042,2]
[398133228,1765395040426,-1000.0,0.00039042,2]
[398133229,1765395040437,-1000.0,0.00039042,2]
[398133230,1765395040448,-574.12855637,0.00039042,2]
[398133231,1765395040459,-1256.4,0.00039064,53]
[398133232,1765395040470,-27112.56,0.00039065,2]
[398133233,1765395040481,-200.0,0.00039227,2]
[398133234,1765395040493,-900.0,0.00039336,2]
[398133235,1765395040503,-500.0,0.00039347,2]
[398133236,1765395040514,-151.0,0.0003959,2]
[398133237,1765395040526,-595.37131296,0.0003959,2]
[398133238,1765395040537,-900.0,0.00039884,2]
[398133239,1765395040548,-150.85,0.0003989,2]
[398133240,1765395040560,-185.24,0.000399,2]
[398133241,1765395040571,-22963.96981738,0.000399,120]
[398133242,1765395040583,-153.03,0.00039925,2]
[398133243,1765395040594,-715.43,0.00039938,120]
[398133245,1765395040606,-150.85,0.0003999,2]
[398133247,1765395040617,-2499.98,0.0004,120]
[398133249,1765395040628,-2500.0,0.0004,120]
[398133251,1765395040639,-37492.98,0.0004,30]
[398133254,1765395040651,-49999.999999,0.0004,3]
[398133255,1765395040662,-7571.18,0.0004,120]
[398133256,1765395040674,-4033.86015146,0.0004,100]
[398133257,1765395040685,-151.0,0.0004,120]
[398133258,1765395040697,-151.0,0.0004,120]
[398133259,1765395040709,-151.0,0.0004,120]
[398133260,1765395040721,-151.0,0.0004,120]
[398133261,1765395040732,-151.0,0.0004,120]
[398133262,1765395040744,-663.346029,0.0004,120]
[398133263,1765395040755,-663.346029,0.0004,120]
[398133265,1765395040767,-663.346029,0.0004,120]
[398133267,1765395040779,-663.346029,0.0004,120]
[398133269,1765395040790,-151.0,0.0004,120]
[398133271,1765395040802,-151.0,0.0004,120]
[398133273,1765395040815,-151.0,0.0004,120]
[398133276,1765395040828,-6116.049585,0.0004,120]
[398133279,1765395040842,-6116.049585,0.0004,120]
[398133303,1765395041043,-151.0,0.0004,30]
[398133306,1765395041068,-151.0,0.0004,120]
[398133309,1765395041087,-151.0,0.0004,120]
[398133311,1765395041098,-6116.049585,0.0004,120]
[398133313,1765395041110,-273.028903,0.0004,120]
[398133315,1765395041121,-6116.049585,0.0004,120]
[398133317,1765395041133,-294.021554,0.0004,120]
[398133319,1765395041144,-294.021554,0.0004,120]
[398133320,1765395041155,-294.021554,0.0004,120]
[398133321,1765395041167,-151.0,0.0004,120]
[398133322,1765395041179,-294.021554,0.0004,120]
[398133323,1765395041192,-151.0,0.0004,120]
[398133324,1765395041203,-152.051019,0.0004,120]
[398133326,1765395041216,-151.0,0.0004,120]
[398133327,1765395041227,-151.0,0.0004,120]
[398133328,1765395041240,-252.771881,0.0004,120]
[398133329,1765395041251,-151.0,0.0004,120]
[398133330,1765395041262,-151.0,0.0004,120]
[398133331,1765395041274,-151.0,0.0004,120]
[398133332,1765395041284,-332.818131,0.0004,120]
[398133333,1765395041295,-332.818131,0.0004,120]
[398133334,1765395041305,-151.0,0.0004,120]
[398133335,1765395041315,-332.818131,0.0004,120]
[398133336,1765395041325,-151.0,0.0004,5]
[398133337,1765395041339,-151.0,0.0004,120]
[398133338,1765395041350,-332.818131,0.0004,120]
[398133339,1765395041360,-151.0,0.0004,120]
[398133340,1765395041370,-151.0,0.0004,5]
[398133341,1765395041381,-151.0,0.0004,120]
[398133342,1765395041392,-184.127517,0.0004,120]
[398133343,1765395041402,-151.0,0.0004,120]
[398133344,1765395041413,-184.127517,0.0004,120]
[398133345,1765395041425,-184.127517,0.0004,120]
[398133346,1765395041436,-239.01433648,0.00040138,2]
[398133347,1765395041447,-617.40005154,0.00040138,2]
[398133348,1765395041458,-601.99,0.00040306,2]
[398133349,1765395041469,-7052.13,0.00040399,2]
[398133350,1765395041480,-177.1573148,0.00040423,30]
[398133351,1765395041490,-900.0,0.00040432,2]
[398133352,1765395041500,-32744.3570146,0.00040478,2]
[398133353,1765395041510,-2500.0,0.000405,120]
[398133354,1765395041521,-150.85,0.00040584,2]
[398133355,1765395041531,-235.5853,0.00040594,2]
[398133356,1765395041541,-281.2338,0.00040594,2]
[398133357,1765395041551,-74752.6633,0.00040594,2]
[398133358,1765395041562,-767.08271029,0.00040686,2]
[398133359,1765395041574,-1000.0,0.00040694,2]
[398133360,1765395041588,-24586.3371,0.00040694,2]
[398133361,1765395041598,-6679.449,0.00040694,2]
[398133362,1765395041609,-5000.0,0.00040694,120]
[398133363,1765395041620,-2500.0,0.00040694,2]
[398133364,1765395041630,-183.04151064,0.00040696,19]
[398133365,1765395041640,-1333.86,0.000407,30]
[398133366,1765395041650,-203.15225593,0.00040728,13]
[398133367,1765395041659,-464.50619349,0.00040793,60]
[398133368,1765395041669,-500.0,0.00040793,30]
[398133369,1765395041678,-500.0,0.00040793,30]
[398133370,1765395041688,-500.0,0.00040793,30]
[398133371,1765395041698,-500.0,0.00040793,60]
[398133372,1765395041707,-590.6,0.00040793,60]
[398133373,1765395041717,-500.0,0.00040793,60]
[398133374,1765395041726,-510.25,0.00040793,60]
[398133375,1765395041735,-500.0,0.00040793,60]
[398133376,1765395041744,-420.29387337,0.00040793,60]
[398133377,1765395041753,-500.0,0.00040793,60]
[398133378,1765395041763,-500.0,0.00040793,60]
[398133379,1765395041772,-500.0,0.00040793,60]
[398133380,1765395041782,-500.0,0.00040793,60]
[398133381,1765395041791,-500.0,0.00040793,2]
[398133382,1765395041801,-500.0,0.00040793,2]
[398133383,1765395041810,-500.0,0.00040793,2]
[398133384,1765395041819,-500.0,0.00040793,2]
[398133385,1765395041828,-161.22280505,0.00040794,2]
[398133386,1765395041839,-151.0,0.00040794,30]
[398133387,1765395041849,-151.0,0.00040794,120]
[398133388,1765395041859,-151.0,0.00040794,120]
[398133389,1765395041874,-151.0,0.00040794,120]
[398133390,1765395041884,-151.0,0.00040794,120]
[398133391,1765395041894,-663.346029,0.00040794,120]
[398133392,1765395041904,-663.346029,0.00040794,120]
[398133393,1765395041914,-663.346029,0.00040794,120]
[398133394,1765395041923,-663.346029,0.00040794,120]
[398133395,1765395041932,-151.0,0.00040794,120]
[398133396,1765395041943,-6116.049585,0.00040794,120]
[398133397,1765395041953,-6116.049585,0.00040794,120]
[398133398,1765395041962,-151.0,0.00040794,30]
[398133399,1765395041971,-151.0,0.00040794,120]
[398133400,1765395041981,-151.0,0.00040794,120]
[398133401,1765395041990,-6116.049585,0.00040794,120]
[398133402,1765395042000,-6116.049585,0.00040794,120]
[398133403,1765395042010,-294.021554,0.00040794,120]
[398133404,1765395042019,-294.021554,0.00040794,120]
[398133405,1765395042029,-294.021554,0.00040794,120]
[398133406,1765395042038,-151.0,0.00040794,120]
[398133407,1765395042048,-294.021554,0.00040794,120]
[398133408,1765395042058,-151.0,0.00040794,120]
[398133409,1765395042068,-151.0,0.00040794,120]
[398133410,1765395042078,-152.51,0.00040828,2]
[398133411,1765395042089,-724.48,0.00040895,30]
[398133412,1765395042099,-150.85,0.0004097,2]
[398133413,1765395042109,-47995.3715189,0.0004098,120]
[398133414,1765395042118,-900.0,0.0004098,2]
[398133415,1765395042128,-696.5,0.00040987,30]
[398133416,1765395042138,-694.01,0.00040989,30]
[398133417,1765395042148,-168.0,0.00041,2]
[398133418,1765395042158,-17438.81343059,0.00041,2]
[398133419,1765395042297,-3349.6,0.00041,2]
[398133420,1765395042310,-294.3711004,0.00041,2]
[398133421,1765395042322,-6351.52546901,0.00041,2]
[398133422,1765395042334,-241.37,0.00041,14]
[398133423,1765395042347,-1000.0,0.00041094,120]
[398133424,1765395042359,-690.32,0.00041094,30]
[398133425,1765395042369,-173.281788,0.00041095,60]
[398133426,1765395042379,-500.0,0.00041095,60]
[398133427,1765395042390,-500.0,0.00041095,60]
[398133428,1765395042401,-156.16716904,0.00041095,60]
[398133429,1765395042412,-500.99818725,0.00041095,60]
[398133430,1765395042422,-500.0,0.00041095,60]
[398133431,1765395042433,-634.61,0.00041095,60]
[398133432,1765395042446,-616.9065929,0.00041095,60]
[398133433,1765395042460,-500.0,0.00041095,60]
[398133434,1765395042472,-500.0,0.00041095,30]
[398133435,1765395042483,-500.0,0.00041095,60]
[398133436,1765395042496,-500.0,0.00041095,60]
[398133437,1765395042506,-500.0,0.00041095,60]
[398133438,1765395042517,-500.0,0.00041095,60]
[398133439,1765395042528,-500.0,0.00041095,60]
[398133440,1765395042539,-500.0,0.00041095,60]
[398133441,1765395042549,-500.0,0.00041095,60]
[398133442,1765395042561,-223.42815692,0.00041095,60]
[398133443,1765395042571,-501.79244723,0.00041095,60]
[398133444,1765395042584,-500.0,0.00041095,60]
[398133445,1765395042595,-500.0,0.00041095,60]
[398133446,1765395042607,-500.0,0.00041095,60]
[398133447,1765395042617,-500.0,0.00041095,60]
[398133448,1765395042629,-500.0,0.00041095,60]
[398133449,1765395042642,-500.0,0.00041095,60]
[398133450,1765395042653,-500.0,0.00041095,60]
[398133451,1765395042663,-500.0,0.00041095,60]
[398133452,1765395042674,-500.0,0.00041095,60]
[398133453,1765395042686,-336.57171731,0.00041095,60]
[398133454,1765395042698,-500.0,0.00041095,60]
[398133455,1765395042709,-500.0,0.00041095,60]
[398133456,1765395042721,-500.0,0.00041095,60]
[398133457,1765395042733,-500.0,0.00041095,60]
[398133458,1765395042743,-500.0,0.00041095,60]
[398133459,1765395042753,-500.0,0.00041095,60]
[398133460,1765395042763,-500.0,0.00041095,60]
[398133461,1765395042776,-500.0,0.00041095,60]
[398133462,1765395042787,-500.0,0.00041095,60]
[398133463,1765395042800,-500.0,0.00041095,60]
[398133464,1765395042812,-500.0,0.00041095,60]
[398133466,1765395042822,-500.0,0.00041095,60]
[398133468,1765395042835,-500.0,0.00041095,60]
[398133470,1765395042850,-500.0,0.00041095,60]
[398133471,1765395042863,-500.0,0.00041095,60]
[398133473,1765395042878,-500.0,0.00041095,60]
[398133474,1765395042889,-500.0,0.00041095,60]
[398133475,1765395042903,-500.0,0.00041095,60]
[398133476,1765395042914,-500.0,0.00041095,60]
[398133477,1765395042925,-500.0,0.00041095,30]
[398133478,1765395042937,-500.0,0.00041095,60]
[398133479,1765395042947,-500.0,0.00041095,60]
[398133480,1765395042959,-500.0,0.00041095,60]
[398133481,1765395042970,-500.0,0.00041095,60]
[398133482,1765395042980,-500.0,0.00041095,60]
[398133483,1765395042990,-500.0,0.00041095,60]
[398133484,1765395043002,-500.0,0.00041095,60]
[398133485,1765395043012,-500.0,0.00041095,60]
[398133486,1765395043022,-500.0,0.00041095,60]
[398133487,1765395043031,-500.0,0.00041095,60]
[398133488,1765395043042,-500.0,0.00041095,60]
[398133489,1765395043052,-500.0,0.00041095,60]
[398133490,1765395043062,-500.0,0.00041095,60]
[398133492,1765395043072,-500.0,0.00041095,60]
[398133493,1765395043084,-500.0,0.00041095,60]
[398133494,1765395043094,-500.0,0.00041095,60]
[398133495,1765395043104,-192.01971605,0.00041095,60]
[398133496,1765395043115,-500.0,0.00041095,60]
[398133497,1765395043125,-500.0,0.00041095,60]
[398133498,1765395043134,-500.0,0.00041095,60]
[398133499,1765395043144,-500.0,0.00041095,60]
[398133500,1765395043155,-500.0,0.00041095,60]
[398133501,1765395043164,-500.0,0.00041095,60]
[398133502,1765395043175,-500.0,0.00041095,60]
[398133503,1765395043185,-500.0,0.00041095,60]
[398133504,1765395043195,-500.0,0.00041095,60]
[398133505,1765395043206,-500.0,0.00041095,60]
[398133506,1765395043215,-500.0,0.00041095,60]
[398133507,1765395043225,-500.0,0.00041095,60]
[398133508,1765395043235,-500.0,0.00041095,60]
[398133509,1765395043245,-500.0,0.00041095,60]
[398133510,1765395043255,-500.0,0.00041095,60]
[398133511,1765395043266,-500.0,0.00041095,60]
[398133512,1765395043277,-500.0,0.00041095,60]
[398133513,1765395043287,-500.0,0.00041095,60]
[398133514,1765395043297,-500.0,0.00041095,60]
[398133515,1765395043307,-500.0,0.00041095,60]
[398133516,1765395043317,-500.0,0.00041095,60]
[398133517,1765395043327,-500.0,0.00041095,60]
[398133518,1765395043337,-500.0,0.00041095,60]
[398133519,1765395043348,-500.0,0.00041095,60]
[398133520,1765395043357,-500.0,0.00041095,60]
[398133521,1765395043367,-447.83303941,0.00041095,60]
[398133522,1765395043377,-500.0,0.00041095,60]
[398133523,1765395043388,-500.0,0.00041095,60]
[398133524,1765395043397,-500.0,0.00041095,60]
[398133525,1765395043407,-500.0,0.00041095,60]
[398133526,1765395043417,-500.0,0.00041095,60]
[398133527,1765395043427,-500.0,0.00041095,60]
[398133528,1765395043437,-500.0,0.00041095,60]
[398133529,1765395043448,-500.0,0.00041095,60]
[398133530,1765395043459,-500.0,0.00041095,60]
[398133531,1765395043469,-500.0,0.00041095,60]
[398133532,1765395043479,-500.0,0.00041095,60]
[398133533,1765395043489,-500.0,0.00041095,60]
[398133534,1765395043499,-618.07246444,0.00041095,60]
[398133535,1765395043509,-500.0,0.00041095,60]
[398133536,1765395043519,-500.0,0.00041095,60]
[398133537,1765395043529,-500.0,0.00041095,60]
[398133538,1765395043539,-500.0,0.00041095,60]
[398133540,1765395043550,-500.0,0.00041095,60]
[398133542,1765395043560,-500.0,0.00041095,60]
[398133544,1765395043570,-500.0,0.00041095,60]
[398133545,1765395043580,-500.0,0.00041095,60]
[398133546,1765395043592,-500.0,0.00041095,60]
[398133547,1765395043602,-500.0,0.00041095,60]
[398133548,1765395043613,-500.0,0.00041095,60]
[398133549,1765395043623,-500.0,0.00041095,60]
[398133550,1765395043633,-500.0,0.00041095,60]
[398133551,1765395043645,-500.0,0.00041095,60]
[398133553,1765395043656,-500.0,0.00041095,60]
[398133554,1765395043668,-500.0,0.00041095,60]
[398133555,1765395043680,-500.0,0.00041095,60]
[398133556,1765395043693,-500.0,0.00041095,60]
[398133557,1765395043706,-500.0,0.00041095,60]
[398133558,1765395043718,-500.0,0.00041095,60]
[398133559,1765395043729,-500.0,0.00041095,60]
[398133560,1765395043740,-500.0,0.00041095,60]
[398133561,1765395043754,-500.0,0.00041095,60]
[398133562,1765395043768,-500.0,0.00041095,60]
[398133563,1765395043779,-377.84440227,0.00041095,60]
[398133564,1765395043793,-500.0,0.00041095,60]
[398133565,1765395043809,-500.0,0.00041095,60]
[398133566,1765395043826,-500.0,0.00041095,60]
[398133567,1765395043837,-500.0,0.00041095,60]
[398133569,1765395043849,-574.64,0.00041095,60]
[398133570,1765395043861,-500.0,0.00041095,60]
[398133571,1765395043870,-500.0,0.00041095,60]
[398133572,1765395043886,-360.13533185,0.00041095,60]
[398133573,1765395043898,-448.52855405,0.00041095,60]
[398133574,1765395043909,-475.86385598,0.00041095,60]
[398133575,1765395043924,-500.0,0.00041095,60]
[398133576,1765395043936,-500.0,0.00041095,60]
[398133577,1765395043950,-500.0,0.00041095,60]
[398133578,1765395043964,-500.0,0.00041095,60]
[398133579,1765395043974,-500.0,0.00041095,60]
[398133580,1765395043986,-500.0,0.00041095,60]
[398133581,1765395043996,-500.0,0.00041095,60]
[398133582,1765395044007,-500.0,0.00041095,60]
[398133583,1765395044022,-500.0,0.00041095,60]
[398133584,1765395044033,-342.28,0.00041095,60]
[398133585,1765395044043,-500.0,0.00041095,60]
[398133586,1765395044053,-500.0,0.00041095,60]
[398133587,1765395044063,-500.0,0.00041095,60]
[398133588,1765395044073,-500.0,0.00041095,60]
[398133589,1765395044083,-500.0,0.00041095,60]
[398133590,1765395044093,-500.0,0.00041095,60]
[398133591,1765395044103,-500.0,0.00041095,60]
[398133592,1765395044113,-500.0,0.00041095,2]
[398133593,1765395044122,-500.0,0.00041095,60]
[398133594,1765395044132,-500.0,0.00041095,60]
[398133595,1765395044142,-500.0,0.00041095,60]
[398133596,1765395044153,-500.0,0.00041095,60]
[398133597,1765395044163,-500.0,0.00041095,60]
[398133598,1765395044174,-500.0,0.00041095,60]
[398133599,1765395044184,-500.0,0.00041095,60]
[398133600,1765395044194,-500.0,0.00041095,60]
[398133601,1765395044204,-500.0,0.00041095,60]
[398133602,1765395044214,-500.0,0.00041095,60]
[398133603,1765395044224,-155.098251,0.00041095,60]
[398133604,1765395044233,-155.098251,0.00041095,60]
[398133605,1765395044244,-155.098251,0.00041095,60]
[398133606,1765395044254,-155.098251,0.00041095,60]
[398133607,1765395044263,-155.098251,0.00041095,60]
[398133608,1765395044272,-500.0,0.00041095,60]
[398133609,1765395044282,-500.0,0.00041095,60]
[398133610,1765395044291,-181.9561328,0.00041095,60]
[398133611,1765395044301,-500.0,0.00041095,60]
[398133612,1765395044310,-167.725728,0.00041095,60]
[398133613,1765395044319,-167.725728,0.00041095,60]
[398133614,1765395044329,-500.0,0.00041095,60]
[398133615,1765395044339,-167.725728,0.00041095,60]
[398133616,1765395044348,-167.725728,0.00041095,60]
[398133617,1765395044357,-167.725728,0.00041095,60]
[398133618,1765395044368,-167.725728,0.00041095,60]
[398133619,1765395044378,-500.0,0.00041095,60]
[398133620,1765395044388,-167.725728,0.00041095,60]
[398133621,1765395044540,-167.725728,0.00041095,60]
[398133622,1765395044551,-500.0,0.00041095,60]
[398133623,1765395044561,-168.642679,0.00041095,60]
[398133624,1765395044570,-168.642679,0.00041095,60]
[398133625,1765395044580,-168.642679,0.00041095,60]
[398133626,1765395044592,-168.642679,0.00041095,60]
[398133627,1765395044601,-168.642679,0.00041095,60]
[398133628,1765395044611,-168.642679,0.00041095,60]
[398133629,1765395044620,-168.642679,0.00041095,60]
[398133630,1765395044630,-502.42034168,0.00041095,60]
[398133631,1765395044640,-500.0,0.00041095,60]
[398133632,1765395044650,-179.498018,0.00041095,60]
[398133633,1765395044660,-502.07313405,0.00041095,60]
[398133634,1765395044670,-500.0,0.00041095,60]
[398133635,1765395044679,-500.0,0.00041095,60]
[398133636,1765395044689,-170.090742,0.00041095,60]
[398133637,1765395044699,-170.090742,0.00041095,60]
[398133638,1765395044710,-170.090742,0.00041095,60]
[398133639,1765395044720,-170.090742,0.00041095,60]
[398133640,1765395044730,-170.090742,0.00041095,60]
[398133641,1765395044739,-170.090742,0.00041095,60]
[398133642,1765395044749,-500.0,0.00041095,60]
[398133643,1765395044759,-500.0,0.00041095,60]
[398133644,1765395044769,-500.0,0.00041095,60]
[398133645,1765395044778,-500.0,0.00041095,60]
[398133646,1765395044788,-500.0,0.00041095,60]
[398133647,1765395044802,-500.0,0.00041095,60]
[398133648,1765395044812,-500.0,0.00041095,60]
[398133649,1765395044822,-248.81635286,0.00041095,60]
[398133650,1765395044832,-500.0,0.00041095,60]
[398133651,1765395044844,-500.0,0.00041095,60]
[398133652,1765395044854,-500.0,0.00041095,60]